fUST/lending_fUST_20240613
["ID","MTS","AMOUNT","RATE_DAILY","PERIOD"]
[329323205,1718244648442,-505.42679498,0.00016438,2]
[329323206,1718244648454,-500.0,0.00016438,2]
[329323207,1718244648465,-2070.09,0.00016438,2]
[329323208,1718244648475,-500.0,0.00016438,2]
[329323209,1718244648486,-500.95524756,0.00016438,2]
[329323210,1718244648498,-500.61771159,0.00016438,2]
[329323211,1718244648515,-500.0,0.00016438,2]
[329323212,1718244648527,-501.07337623,0.00016438,2]
[329323213,1718244648540,-500.0,0.00016438,2]
[329323214,1718244648557,-500.0,0.00016438,2]
[329323215,1718244648571,-500.0,0.00016438,2]
[329323216,1718244648582,-500.0,0.00016438,2]
[329323217,1718244648595,-500.0,0.00016438,2]
[329323218,1718244648611,-500.0,0.00016438,2]
[329323219,1718244648625,-500.0,0.00016438,2]
[329323220,1718244648638,-501.13904019,0.00016438,2]
[329323221,1718244648654,-1041.89,0.00016438,2]
[329323222,1718244648667,-503.40613617,0.00016438,2]
[329323223,1718244648703,-500.0,0.00016438,2]
[329323224,1718244648720,-500.0,0.00016438,2]
[329323225,1718244648737,-500.0,0.00016438,2]
[329323226,1718244648774,-500.0,0.00016438,2]
[329323227,1718244648791,-500.0,0.00016438,2]
[329323228,1718244648806,-2615.32,0.00016438,2]
[329323229,1718244648822,-457.32619039,0.00016438,2]
[329323230,1718244648838,-868.63,0.00016438,2]
[329323231,1718244648849,-500.0,0.00016568,2]
[329323232,1718244648862,-500.0,0.00016568,2]
[329323233,1718244648874,-500.0,0.00016568,2]
[329323234,1718244648885,-500.0,0.00016568,2]
[329323235,1718244648902,-213.37223052,0.00016681,2]
[329323236,1718244648919,-500.0,0.00016711,2]
[329323237,1718244648931,-500.0,0.00016711,2]
[329323238,1718244648942,-500.0,0.00016711,2]
[329323239,1718244648956,-500.0,0.00016711,2]
[329323240,1718244648968,-500.0,0.00016711,2]
[329323241,1718244648980,-500.0,0.00016711,2]
[329323242,1718244648996,-500.0,0.00016711,2]
[329323243,1718244649012,-500.0,0.00016711,2]
[329323244,1718244649023,-514.18,0.00016711,2]
[329323245,1718244649035,-514.18,0.00016711,2]
[329323246,1718244649046,-514.18,0.00016711,2]
[329323247,1718244649061,-500.0,0.00016711,2]
[329323248,1718244649077,-500.0,0.00016711,2]
[329323249,1718244649089,-500.0,0.00016711,2]
[329323250,1718244649104,-500.0,0.00016711,2]
[329323251,1718244649121,-502.56398246,0.00016711,2]
[329323252,1718244649132,-500.0,0.00016712,2]
[329323253,1718244649145,-504.2910003,0.00016712,2]
[329323254,1718244649156,-500.0,0.00016712,2]
[329323255,1718244649185,-506.91318144,0.00016712,2]
[329323256,1718244649202,-500.0,0.00016712,2]
[329323257,1718244649246,-500.0,0.00016712,2]
[329323258,1718244649277,-500.0,0.00016712,2]
[329323259,1718244649298,-500.0,0.00016712,2]
[329323260,1718244649317,-500.0,0.00016712,2]
[329323261,1718244649335,-184.56189872,0.00016712,2]
[329323262,1718244649346,-500.0,0.00016712,2]
[329323263,1718244649362,-500.0,0.00016712,2]
[329323264,1718244649380,-500.0,0.00016712,2]
[329323265,1718244649392,-500.0,0.00016712,2]
[329323266,1718244649404,-500.0,0.00016712,2]
[329323267,1718244649423,-251.63327967,0.00016712,2]
[329323268,1718244649438,-504.65355803,0.00016712,2]
[329323269,1718244649449,-500.0,0.00016712,4]
[329323270,1718244649464,-510.06784242,0.00016712,2]
[329323271,1718244649477,-500.0,0.00016712,2]
[329323272,1718244649492,-500.0,0.00016712,2]
[329323273,1718244649505,-500.0,0.00016712,2]
[329323274,1718244649518,-505.37617169,0.00016712,2]
[329323275,1718244649532,-504.57894638,0.00016712,2]
[329323276,1718244649546,-500.0,0.00016712,2]
[329323277,1718244649561,-500.0,0.00016712,2]
[329323278,1718244649577,-500.0,0.00016712,2]
[329323279,1718244649593,-500.0,0.00016712,2]
[329323280,1718244649604,-500.0,0.00016712,2]
[329323281,1718244649619,-500.0,0.00016712,2]
[329323282,1718244649640,-154.77325878,0.00016712,2]
[329323283,1718244649656,-472.45146374,0.00016712,2]
[329323284,1718244649678,-505.7925289,0.00016712,2]
[329323285,1718244649716,-500.0,0.00016712,2]
[329323286,1718244649732,-500.0,0.00016712,2]
[329323287,1718244649746,-502.83845032,0.00016712,2]
[329323288,1718244649763,-500.0,0.00016712,2]
[329323289,1718244649776,-500.0,0.00016712,2]
[329323290,1718244649790,-500.0,0.00016712,2]
[329323291,1718244649811,-588.83,0.00016712,2]
[329323292,1718244649823,-503.33709716,0.00016712,2]
[329323293,1718244649834,-500.0,0.00016712,2]
[329323294,1718244649845,-504.23332441,0.00016712,2]
[329323295,1718244649857,-179.85992308,0.00016712,2]
[329323296,1718244649869,-502.52028851,0.00016712,2]
[329323297,1718244649883,-500.0,0.00016712,2]
[329323298,1718244649895,-329.0253959,0.00016712,2]
[329323299,1718244649907,-500.0,0.00016712,2]
[329323300,1718244649918,-500.0,0.00016712,2]
[329323301,1718244649929,-531.42432964,0.00016712,2]
[329323302,1718244649939,-500.0,0.00016712,2]
[329323303,1718244649950,-500.0,0.00016712,2]
[329323304,1718244649961,-234.00502142,0.00016712,2]
[329323305,1718244649971,-500.0,0.00016712,2]
[329323306,1718244649982,-511.55,0.00016712,2]
[329323307,1718244649994,-500.0,0.00016712,2]
[329323308,1718244650008,-500.0,0.00016712,2]
[329323309,1718244650019,-500.0,0.00016712,2]
[329323310,1718244650030,-500.0,0.00016712,2]
[329323311,1718244650042,-500.0,0.00016712,2]
[329323312,1718244650053,-500.0,0.00016712,2]
[329323313,1718244650064,-500.0,0.00016712,2]
[329323314,1718244650074,-500.0,0.00016712,2]
[329323315,1718244650085,-500.0,0.00016712,2]
[329323316,1718244650097,-500.0,0.00016712,2]
[329323317,1718244650108,-500.0,0.00016712,2]
[329323318,1718244650119,-500.0,0.00016712,2]
[329323319,1718244650130,-505.69531129,0.00016712,2]
[329323320,1718244650141,-500.0,0.00016712,2]
[329323321,1718244650152,-500.0,0.00016712,2]
[329323322,1718244650164,-500.0,0.00016712,2]
[329323323,1718244650176,-500.0,0.00016712,2]
[329323324,1718244650188,-500.0,0.00016712,2]
[329323325,1718244650199,-500.0,0.00016712,2]
[329323326,1718244650210,-500.0,0.00016712,2]
[329323327,1718244650220,-460.24453556,0.00016712,2]
[329323328,1718244650231,-533.11763455,0.00016712,2]
[329323329,1718244650242,-500.0,0.00016712,2]
[329323330,1718244650256,-500.0,0.00016712,2]
[329323331,1718244650267,-505.76896261,0.00016712,2]
[329323332,1718244650278,-500.0,0.00016712,2]
[329323333,1718244650289,-500.0,0.00016712,2]
[329323334,1718244650300,-500.0,0.00016712,2]
[329323335,1718244650311,-500.0,0.00016712,2]
[329323336,1718244650322,-504.60595636,0.00016712,2]
[329323337,1718244650332,-500.0,0.00016712,2]
[329323338,1718244650343,-500.0,0.00016712,2]
[329323339,1718244650354,-500.0,0.00016712,2]
[329323340,1718244650365,-552.19818538,0.00016712,2]
[329323341,1718244650377,-506.33785986,0.00016712,2]
[329323342,1718244650388,-500.0,0.00016712,2]
[329323343,1718244650401,-500.0,0.00016712,2]
[329323344,1718244650412,-500.0,0.00016712,2]
[329323345,1718244650424,-500.0,0.00016712,2]
[329323346,1718244650436,-500.0,0.00016712,2]
[329323347,1718244650447,-645.76,0.00016712,2]
[329323348,1718244650458,-501.91656576,0.00016712,2]
[329323349,1718244650470,-500.0,0.00016712,2]
[329323350,1718244650481,-500.0,0.00016712,2]
[329323351,1718244650492,-175.60271591,0.00016712,2]
[329323352,1718244650508,-500.0,0.00016712,2]
[329323353,1718244650520,-500.0,0.00016712,2]
[329323354,1718244650532,-500.0,0.00016712,2]
[329323355,1718244650543,-457.5668634,0.00016712,2]
[329323356,1718244650555,-500.0,0.00016712,2]
[329323357,1718244650570,-500.0,0.00016712,2]
[329323358,1718244650585,-500.0,0.00016712,2]
[329323359,1718244650596,-500.0,0.00016712,2]
[329323360,1718244650607,-500.0,0.00016712,2]
[329323361,1718244650618,-500.0,0.00016712,2]
[329323362,1718244650629,-500.0,0.00016712,2]
[329323363,1718244650640,-500.0,0.00016712,2]
[329323364,1718244650650,-500.0,0.00016712,2]
[329323365,1718244650662,-540.44613334,0.00016712,2]
[329323366,1718244650674,-500.0,0.00016712,2]
[329323367,1718244650706,-503.22967273,0.00016712,2]
[329323368,1718244650720,-500.0,0.00016712,2]
[329323369,1718244650731,-500.0,0.00016712,2]
[329323370,1718244650741,-500.0,0.00016712,2]
[329323371,1718244650753,-500.0,0.00016712,2]
[329323372,1718244650767,-507.03697536,0.00016712,2]
[329323373,1718244650777,-520.97,0.00016712,2]
[329323374,1718244650787,-500.0,0.00016712,2]
[329323375,1718244650803,-500.0,0.00016712,2]
[329323376,1718244650814,-503.70124689,0.00016712,2]
[329323377,1718244650825,-500.0,0.00016712,2]
[329323378,1718244650836,-236.32400074,0.00016712,2]
[329323379,1718244650846,-500.0,0.00016712,2]
[329323380,1718244650858,-500.0,0.00016712,2]
[329323381,1718244650868,-500.0,0.00016712,2]
[329323382,1718244650880,-500.0,0.00016712,2]
[329323383,1718244650891,-500.0,0.00016712,2]
[329323384,1718244650902,-504.32518635,0.00016712,2]
[329323385,1718244650913,-696.98,0.00016712,2]
[329323386,1718244650924,-430.79986612,0.00016712,2]
[329323387,1718244650935,-500.0,0.00016712,2]
[329323388,1718244650947,-500.0,0.00016712,2]
[329323389,1718244650959,-500.0,0.00016712,2]
[329323390,1718244650972,-1196.98,0.00016712,2]
[329323391,1718244650983,-500.0,0.00016712,2]
[329323392,1718244650995,-1109.56,0.00016712,2]
[329323393,1718244651009,-500.0,0.00016712,2]
[329323394,1718244651025,-503.71952875,0.00016712,2]
[329323395,1718244651037,-751.31,0.00016712,2]
[329323396,1718244651050,-504.07393235,0.00016712,2]
[329323397,1718244651064,-500.0,0.00016712,2]
[329323398,1718244651076,-500.0,0.00016712,2]
[329323399,1718244651094,-500.0,0.00016712,2]
[329323400,1718244651113,-500.0,0.00016712,2]
[329323401,1718244651143,-507.69322509,0.00016712,2]
[329323402,1718244651161,-1254.28,0.00016712,2]
[329323403,1718244651175,-500.0,0.00016712,2]
[329323404,1718244651193,-500.0,0.00016712,2]
[329323405,1718244651214,-500.0,0.00016712,2]
[329323406,1718244651239,-503.50705889,0.00016712,2]
[329323407,1718244651253,-2253.24,0.00016712,2]
[329323408,1718244651264,-500.0,0.00016712,2]
[329323409,1718244651282,-500.0,0.00016712,2]
[329323410,1718244651297,-502.80042173,0.00016712,2]
[329323411,1718244651313,-500.0,0.00016712,2]
[329323412,1718244651330,-500.0,0.00016712,2]
[329323413,1718244651343,-500.0,0.00016712,2]
[329323414,1718244651363,-500.0,0.00016712,2]
[329323415,1718244651381,-752.11,0.00016712,2]
[329323416,1718244651394,-500.0,0.00016712,2]
[329323417,1718244651406,-500.0,0.00016712,2]
[329323418,1718244651426,-500.0,0.00016712,2]
[329323419,1718244651446,-500.0,0.00016712,2]
[329323420,1718244651460,-504.24214208,0.00016712,2]
[329323421,1718244651490,-500.0,0.00016712,2]
[329323424,1718244651510,-506.12243762,0.00016712,2]
[329323427,1718244651523,-6018.11,0.00016712,2]
[329323430,1718244651542,-500.0,0.00016712,2]
[329323433,1718244651553,-500.0,0.00016712,2]
[329323436,1718244651564,-4585.7,0.00016712,2]
[329323439,1718244651577,-500.0,0.00016712,2]
[329323442,1718244651587,-500.0,0.00016712,2]
[329323444,1718244651599,-500.0,0.00016712,2]
[329323445,1718244651610,-500.0,0.00016712,2]
[329323446,1718244651620,-500.0,0.00016712,2]
[329323447,1718244651634,-500.0,0.00016712,2]
[329323450,1718244651645,-6612.15,0.00016712,2]
[329323453,1718244651656,-697.97,0.00016712,2]
[329323455,1718244651667,-649.01,0.00016712,2]
[329323459,1718244651702,-658.07,0.00016712,2]
[329323462,1718244651715,-500.0,0.00016712,2]
[329323465,1718244651729,-1644.06,0.00016712,2]
[329323467,1718244651741,-503.06029148,0.00016712,2]
[329323468,1718244651758,-500.0,0.00016712,2]
[329323470,1718244651770,-500.0,0.00016712,2]
[329323472,1718244651780,-2070.09,0.00016712,2]
[329323474,1718244651793,-508.32817465,0.00016712,2]
[329323476,1718244651804,-500.0,0.00016712,2]
[329323478,1718244651816,-500.0,0.00016712,2]
[329323480,1718244651826,-500.0,0.00016712,2]
[329323482,1718244651837,-1041.89,0.00016712,2]
[329323485,1718244651848,-500.0,0.00016712,2]
[329323487,1718244651860,-500.0,0.00016712,2]
[329323489,1718244651870,-500.0,0.00016712,2]
[329323491,1718244651880,-500.0,0.00016712,2]
[329323493,1718244651892,-500.0,0.00016712,2]
[329323495,1718244651903,-2615.32,0.00016712,2]
[329323496,1718244651913,-868.63,0.00016712,2]
[329323498,1718244651925,-153.0,0.00016767,2]
[329323499,1718244651936,-420.0,0.00016919,2]
[329323501,1718244651949,-533.58581154,0.00016985,2]
[329323503,1718244651960,-500.0,0.00016985,2]
[329323505,1718244651970,-500.0,0.00016985,2]
[329323507,1718244651981,-514.18,0.00016985,2]
[329323509,1718244651991,-514.18,0.00016985,2]
[329323511,1718244652003,-500.0,0.00016985,2]
[329323513,1718244652014,-500.0,0.00016985,2]
[329323519,1718244652144,-500.0,0.00016985,2]
[329323521,1718244652157,-500.0,0.00016985,2]
[329323523,1718244652168,-500.0,0.00016986,2]
[329323525,1718244652179,-435.36719157,0.00016986,2]
[329323527,1718244652192,-500.0,0.00016986,2]
[329323530,1718244652207,-500.0,0.00016986,2]
[329323532,1718244652225,-500.0,0.00016986,2]
[329323534,1718244652238,-500.0,0.00016986,2]
[329323535,1718244652254,-500.0,0.00016986,2]
[329323537,1718244652266,-500.0,0.00016986,2]
[329323540,1718244652276,-530.71418767,0.00016986,2]
[329323541,1718244652287,-505.21806324,0.00016986,2]
[329323543,1718244652300,-614.25496652,0.00016986,2]
[329323546,1718244652315,-505.53466256,0.00016986,2]
[329323548,1718244652326,-437.68237817,0.00016986,2]
[329323550,1718244652337,-500.0,0.00016986,2]
[329323551,1718244652349,-371.70193289,0.00016986,2]
[329323552,1718244652360,-510.95376164,0.00016986,2]
[329323553,1718244652371,-500.0,0.00016986,2]
[329323554,1718244652382,-500.0,0.00016986,2]
[329323556,1718244652393,-500.0,0.00016986,2]
[329323558,1718244652404,-500.0,0.00016986,2]
[329323559,1718244652415,-500.0,0.00016986,2]
[329323561,1718244652426,-505.7028043,0.00016986,2]
[329323563,1718244652437,-588.83,0.00016986,2]
[329323565,1718244652450,-500.0,0.00016986,2]
[329323567,1718244652460,-500.0,0.00016986,2]
[329323569,1718244652471,-491.23478438,0.00016986,2]
[329323571,1718244652481,-500.0,0.00016986,2]
[329323573,1718244652491,-500.0,0.00016986,2]
[329323574,1718244652504,-500.0,0.00016986,2]
[329323575,1718244652513,-597.58933364,0.00016986,2]
[329323576,1718244652524,-511.55,0.00016986,2]
[329323577,1718244652534,-500.0,0.00016986,2]
[329323579,1718244652544,-500.0,0.00016986,2]
[329323581,1718244652553,-500.0,0.00016986,2]
[329323582,1718244652563,-500.0,0.00016986,2]
[329323584,1718244652573,-573.83869851,0.00016986,2]
[329323586,1718244652584,-507.76656536,0.00016986,2]
[329323588,1718244652595,-500.0,0.00016986,2]
[329323590,1718244652608,-500.0,0.00016986,2]
[329323591,1718244652620,-504.51072072,0.00016986,2]
[329323592,1718244652634,-519.70281015,0.00016986,2]
[329323594,1718244652647,-500.0,0.00016986,2]
[329323596,1718244652658,-500.0,0.00016986,2]
[329323598,1718244652670,-510.58605869,0.00016986,2]
[329323600,1718244652702,-500.0,0.00016986,2]
[329323602,1718244652714,-500.0,0.00016986,2]
[329323604,1718244652730,-500.0,0.00016986,2]
[329323606,1718244652741,-504.74556713,0.00016986,2]
[329323608,1718244652753,-500.0,0.00016986,2]
[329323609,1718244652766,-500.0,0.00016986,2]
[329323612,1718244652778,-500.0,0.00016986,2]
[329323614,1718244652789,-500.0,0.00016986,2]
[329323616,1718244652799,-500.0,0.00016986,2]
[329323618,1718244652812,-500.0,0.00016986,2]
[329323620,1718244652823,-511.07454243,0.00016986,2]
[329323622,1718244652834,-645.76,0.00016986,2]
[329323624,1718244652845,-500.0,0.00016986,2]
[329323626,1718244652857,-500.0,0.00016986,2]
[329323628,1718244652869,-505.26578951,0.00016986,2]
[329323630,1718244652879,-505.62757351,0.00016986,2]
[329323632,1718244652891,-192.44892117,0.00016986,2]
[329323633,1718244652901,-500.0,0.00016986,2]
[329323634,1718244652912,-500.0,0.00016986,2]
[329323635,1718244652923,-500.0,0.00016986,2]
[329323636,1718244652934,-500.0,0.00016986,2]
[329323637,1718244652945,-500.0,0.00016986,2]
[329323638,1718244652955,-500.0,0.00016986,2]
[329323639,1718244652967,-500.0,0.00016986,2]
[329323640,1718244652977,-500.0,0.00016986,2]
[329323642,1718244652989,-500.0,0.00016986,2]
[329323644,1718244653005,-500.0,0.00016986,2]
[329323646,1718244653019,-500.0,0.00016986,2]
[329323648,1718244653032,-508.17150344,0.00016986,2]
[329323651,1718244653043,-520.97,0.00016986,2]
[329323652,1718244653054,-500.0,0.00016986,2]
[329323654,1718244653066,-500.0,0.00016986,2]
[329323657,1718244653079,-500.0,0.00016986,2]
[329323659,1718244653090,-500.0,0.00016986,2]
[329323660,1718244653101,-500.0,0.00016986,2]
[329323662,1718244653112,-500.0,0.00016986,2]
[329323663,1718244653123,-151.82228545,0.00016986,2]
[329323664,1718244653134,-500.0,0.00016986,2]
[329323665,1718244653146,-696.98,0.00016986,2]
[329323666,1718244653157,-500.0,0.00016986,2]
[329323667,1718244653168,-500.0,0.00016986,2]
[329323668,1718244653179,-176.7511843,0.00016986,2]
[329323669,1718244653190,-1196.98,0.00016986,2]
[329323670,1718244653202,-511.72813009,0.00016986,2]
[329323671,1718244653213,-1109.56,0.00016986,2]
[329323672,1718244653224,-500.0,0.00016986,2]
[329323673,1718244653239,-751.31,0.00016986,2]
[329323674,1718244653256,-500.0,0.00016986,2]
[329323675,1718244653269,-500.0,0.00016986,2]
[329323677,1718244653282,-500.0,0.00016986,2]
[329323680,1718244653304,-1254.28,0.00016986,2]
[329323682,1718244653318,-500.0,0.00016986,2]
[329323684,1718244653330,-500.0,0.00016986,2]
[329323686,1718244653344,-500.0,0.00016986,2]
[329323688,1718244653356,-2253.24,0.00016986,2]
[329323690,1718244653369,-500.0,0.00016986,2]
[329323692,1718244653380,-500.0,0.00016986,2]
[329323694,1718244653391,-500.0,0.00016986,2]
[329323696,1718244653402,-500.0,0.00016986,2]
[329323698,1718244653416,-500.0,0.00016986,2]
[329323700,1718244653427,-409.3258337,0.00016986,2]
[329323702,1718244653437,-752.11,0.00016986,2]
[329323704,1718244653448,-464.1985087,0.00016986,2]
[329323706,1718244653459,-500.0,0.00016986,2]
[329323707,1718244653470,-500.0,0.00016986,2]
[329323709,1718244653481,-500.0,0.00016986,2]
[329323710,1718244653492,-500.0,0.00016986,2]
[329323711,1718244653507,-6018.11,0.00016986,2]
[329323712,1718244653520,-500.0,0.00016986,2]
[329323713,1718244653534,-500.0,0.00016986,2]
[329323714,1718244653547,-4585.7,0.00016986,2]
[329323715,1718244653564,-500.0,0.00016986,2]
[329323716,1718244653580,-538.9173772,0.00016986,2]
[329323717,1718244653595,-500.0,0.00016986,2]
[329323718,1718244653609,-510.99609868,0.00016986,2]
[329323719,1718244653622,-503.7316994,0.00016986,2]
[329323720,1718244653634,-500.0,0.00016986,2]
[329323721,1718244653647,-6612.15,0.00016986,2]
[329323722,1718244653660,-697.97,0.00016986,2]
[329323723,1718244653672,-649.01,0.00016986,2]
[329323724,1718244653707,-658.07,0.00016986,2]
[329323725,1718244653722,-500.0,0.00016986,2]
[329323726,1718244653737,-1644.06,0.00016986,2]
[329323727,1718244653748,-500.0,0.00016986,2]
[329323728,1718244653763,-500.0,0.00016986,2]
[329323729,1718244653775,-2070.09,0.00016986,2]
[329323730,1718244653786,-508.65626319,0.00016986,2]
[329323731,1718244653797,-500.0,0.00016986,2]
[329323732,1718244653811,-500.0,0.00016986,2]
[329323733,1718244653824,-1041.89,0.00016986,2]
[329323734,1718244653835,-500.0,0.00016986,2]
[329323735,1718244653847,-500.0,0.00016986,2]
[329323736,1718244653858,-500.0,0.00016986,2]
[329323737,1718244653869,-469.74061862,0.00016986,2]
[329323738,1718244653880,-500.0,0.00016986,2]
[329323739,1718244653890,-2615.32,0.00016986,2]
[329323740,1718244653901,-868.63,0.00016986,2]
[329323741,1718244653912,-213.37223052,0.00017023,2]
[329323742,1718244653924,-153.0,0.00017135,2]
[329323743,1718244653935,-153.0,0.00017135,2]
[329323744,1718244653949,-153.0,0.00017135,2]
[329323745,1718244653961,-153.0,0.00017135,2]
[329323746,1718244653975,-153.0,0.00017135,2]
[329323747,1718244653992,-153.0,0.00017135,2]
[329323748,1718244654008,-153.0,0.00017135,2]
[329323749,1718244654020,-153.0,0.00017135,2]
[329323750,1718244654034,-153.0,0.00017135,2]
[329323751,1718244654045,-153.0,0.00017135,2]
[329323752,1718244654058,-153.0,0.00017135,2]
[329323753,1718244654068,-153.0,0.00017135,2]
[329323754,1718244654080,-153.0,0.00017135,2]
[329323755,1718244654092,-153.0,0.00017135,2]
[329323756,1718244654103,-153.0,0.00017135,2]
[329323757,1718244654114,-153.0,0.00017177,2]
[329323758,1718244654124,-153.0,0.00017177,2]
[329323759,1718244654137,-153.0,0.00017177,2]
[329323760,1718244654147,-153.0,0.00017177,2]
[329323761,1718244654158,-153.0,0.00017177,2]
[329323762,1718244654169,-153.0,0.00017177,2]
[329323763,1718244654180,-153.0,0.00017177,2]
[329323764,1718244654191,-153.0,0.00017177,2]
[329323765,1718244654203,-153.0,0.00017177,2]
[329323766,1718244654216,-153.0,0.00017225,2]
[329323767,1718244654230,-153.0,0.00017225,2]
[329323768,1718244654241,-153.0,0.00017225,2]
[329323769,1718244654259,-153.0,0.00017225,2]
[329323770,1718244654272,-153.0,0.00017225,2]
[329323771,1718244654284,-153.0,0.00017225,2]
[329323772,1718244654297,-153.0,0.00017225,2]
[329323773,1718244654311,-153.0,0.00017225,2]
[329323774,1718244654324,-153.0,0.00017225,2]
[329323775,1718244654344,-153.0,0.00017225,2]
[329323776,1718244654358,-153.0,0.00017225,2]
[329323777,1718244654374,-153.0,0.00017225,2]
[329323778,1718244654386,-153.0,0.00017225,2]
[329323779,1718244654400,-153.0,0.00017225,2]
[329323780,1718244654415,-153.0,0.00017225,2]
[329323781,1718244654429,-153.0,0.00017225,2]
[329323782,1718244654443,-153.0,0.00017225,2]
[329323783,1718244654455,-153.0,0.00017225,2]
[329323784,1718244654467,-153.0,0.00017225,2]
[329323785,1718244654481,-153.0,0.00017225,2]
[329323786,1718244654492,-153.0,0.00017225,2]
[329323787,1718244654506,-153.0,0.00017225,2]
[329323788,1718244654518,-153.0,0.00017225,2]
[329323789,1718244654529,-153.0,0.00017225,2]
[329323790,1718244654541,-153.0,0.00017225,2]
[329323791,1718244654552,-153.0,0.00017225,2]
[329323792,1718244654564,-153.0,0.00017225,2]
[329323793,1718244654576,-153.0,0.00017225,2]
[329323794,1718244654590,-153.0,0.00017225,2]
[329323795,1718244654605,-153.0,0.00017225,2]
[329323796,1718244654618,-153.0,0.00017225,2]
[329323797,1718244654635,-153.0,0.00017225,2]
[329323798,1718244654646,-153.0,0.00017225,2]
[329323799,1718244654658,-153.0,0.00017225,2]
[329323800,1718244654669,-153.0,0.00017225,2]
[329323801,1718244654703,-153.0,0.00017225,2]
[329323802,1718244654715,-153.0,0.00017225,2]
[329323803,1718244654735,-153.0,0.00017225,2]
[329323804,1718244654751,-153.0,0.00017225,2]
[329323805,1718244654770,-153.0,0.00017225,2]
[329323806,1718244654787,-153.0,0.00017225,2]
[329323807,1718244654799,-153.0,0.00017225,2]
[329323808,1718244654815,-500.0,0.00017259,2]
[329323809,1718244654827,-500.0,0.00017259,2]
[329323810,1718244654842,-514.18,0.00017259,2]
[329323811,1718244654855,-514.18,0.00017259,2]
[329323812,1718244654877,-500.0,0.00017259,2]
[329323813,1718244654891,-500.0,0.00017259,2]
[329323814,1718244654904,-500.0,0.00017259,2]
[329323815,1718244654919,-500.0,0.00017259,2]
[329323816,1718244654932,-500.0,0.0001726,2]
[329323817,1718244654945,-500.0,0.0001726,2]
[329323818,1718244654956,-500.0,0.0001726,2]
[329323819,1718244654970,-506.59143494,0.0001726,2]
[329323820,1718244654983,-500.0,0.0001726,2]
[329323821,1718244655005,-500.0,0.0001726,2]
[329323822,1718244655022,-212.9175175,0.0001726,2]
[329323823,1718244655041,-500.0,0.0001726,2]
[329323824,1718244655081,-505.93104731,0.0001726,2]
[329323825,1718244655098,-500.0,0.0001726,2]
[329323826,1718244655116,-588.83,0.0001726,2]
[329323827,1718244655131,-500.0,0.0001726,2]
[329323828,1718244655142,-500.0,0.0001726,2]
[329323829,1718244655154,-500.0,0.0001726,2]
[329323830,1718244655166,-500.0,0.0001726,2]
[329323831,1718244655184,-500.0,0.0001726,2]
[329323832,1718244655197,-511.55,0.0001726,2]
[329323833,1718244655214,-500.0,0.0001726,2]
[329323834,1718244655228,-500.0,0.0001726,2]
[329323835,1718244655242,-500.0,0.0001726,2]
[329323836,1718244655259,-500.0,0.0001726,2]
[329323837,1718244655276,-532.58386748,0.0001726,2]
[329323838,1718244655292,-500.0,0.0001726,2]